Cogmind - Beta 14 @@@ ROGUE MODE // 2024.09.16 @ 01:00:49 // AFD2020/Player2 Player: Null_error Result: Core destroyed Performance ------------- Evolutions (3) 1500 Regions Visited (9) 1800 Robots Destroyed (39) 195 Value Destroyed (2831) 2831 Prototype IDs (33) 660 Alien Tech Used (0) 0 Bonus (2397) 2397 TOTAL SCORE: 9383 Bonus ------- High Alert Combat Kills 256 Follower Combat Kills 2287 Entered Garrisons 200 Aligned with FarCom 300 Friendly Fire -646 Cogmind --------- Core Integrity 0/700 Matter 275/300 Energy 255/290 System Corruption 8% Temperature Cool (60) Movement Rolling (125) Ox3 Location -7/Factory Parts ------- > --- POWER (1) -------- Reinforced Deuterium Engine > --- PROPULSION (3) --- Wheel VTOL Module Improved VTOL Module > --- UTILITY (7) ------ Medium Storage Unit Active Sensor Spoofer Improved Shield Generator (fused) Hacking Suite Hacking Suite Hacking Suite Supersonic Drone Bay (0/1) > --- WEAPON (2) ------- Particle Gun Autogun > --- INVENTORY (10) --- Reinforced Deuterium Engine Armored Treads Advanced VSS Leg Improved Heat Sink High-capacity Matter Pod (200) Active Sensor Suite Layered Light Armor Plating Remote Datajack Peak State ------------ > --- POWER ------------ Micro Nuclear Core > --- PROPULSION ------- Advanced VSS Leg Gravmag System Combat Airjet > --- UTILITY ---------- Medium Storage Unit Active Sensor Suite Active Sensor Spoofer Hacking Suite Hacking Suite > --- WEAPON ----------- Particle Gun Gatling Laser > --- INVENTORY -------- Light Deuterium Engine Light Nuclear Core Armored Treads Improved Heat Sink Improved Heat Sink High-capacity Matter Pod Melee Analysis Suite Hardened Medium Armor Plating Improved Shield Generator Remote Datajack [Rating: 70] Favorites ----------- Power Cooled Ion Engine Engine Cooled Ion Engine Power Core Micro Nuclear Core Propulsion Aluminum Leg Treads Armored Treads Leg Aluminum Leg Wheel Compact Wheel Hover Unit Combat Airjet Flight Unit VTOL Module Utility Hacking Suite Device Improved Shield Generator Storage Medium Storage Unit Processor Machine Analyzer Hackware Hacking Suite Protection Hardened Medium Armor Plating Weapon Spread Laser Energy Gun Spread Laser Energy Cannon Improved EM Pulse Cannon Ballistic Gun Enhanced Autogun Ballistic Cannon Assault Cannon Launcher Rocket Launcher Impact Weapon Heavy Flail Build | -11 -10 -9 -9 -9 -8 -8 -7 -7 -7 ------- Run | Yrd Mat Mat Min Exi Min Mat Fac Gar Fac Slots Evolved 6 | . . 2 . . . 2 2 . . Power . | . . . . . . . . . . Propulsion 1 | . . 1 . . . . . . . Utility 5 | . . 1 . . . 2 2 . . Weapon . | . . . . . . . . . . Parts Attached 100 | 6 4 10 4 1 5 26 2 35 7 Power 10 | 1 . 2 . . . 1 . 5 1 Engine 7 | 1 . 2 . . . 1 . 2 1 Core 3 | . . . . . . . . 3 . Reactor . | . . . . . . . . . . Propulsion 39 | 2 3 3 3 . 4 9 . 13 2 Treads 3 | . . . . . . 2 . 1 . Leg 15 | 1 2 2 1 . 4 4 . 1 . Wheel 3 | 1 1 . . . . . . . 1 Hover 8 | . . . 1 . . 2 . 5 . Flight 10 | . . 1 1 . . 1 . 6 1 Utility 29 | 1 1 1 . 1 . 10 2 9 4 Device 14 | . . 1 . . . 3 1 6 3 Storage 2 | 1 . . . 1 . . . . . Processor 2 | . . . . . . 2 . . . Hackware 4 | . 1 . . . . . 1 1 1 Protection 7 | . . . . . . 5 . 2 . Artifact . | . . . . . . . . . . Weapon 22 | 2 . 4 1 . 1 6 . 8 . Energy Gun 9 | . . 3 . . . 2 . 4 . Energy Cannon 1 | . . . . . . 1 . . . Ballistic Gun 9 | 2 . 1 . . 1 2 . 3 . Ballistic Cannon 1 | . . . . . . 1 . . . Launcher 1 | . . . 1 . . . . . . Special Weapon . | . . . . . . . . . . Impact Weapon 1 | . . . . . . . . 1 . Slashing Weapon . | . . . . . . . . . . Piercing Weapon . | . . . . . . . . . . Special Melee Weapon . | . . . . . . . . . . Unidentified Prototypes 10 | . . 3 . . . 5 . 2 . Corrupted Parts 2 | . . . . . . 1 . 1 . System Corruption 3 | . . . . . . 2 . 1 . Parts Lost 9 | . . . . . 2 3 . 3 1 Power 1 | . . . . . . . . 1 . Propulsion 4 | . . . . . 1 1 . 1 1 Utility 2 | . . . . . . 2 . . . Weapon 2 | . . . . . 1 . . 1 . Highest Loss Streak 2 | . . . . . 2 1 . 1 1 To Critical Strikes . | . . . . . . . . . . Average Slot Usage (%) 95 | . 91 90 100 100 99 97 97 90 99 Engine 7 | . 14 11 11 11 11 8 7 4 7 Treads 2 | . . . . . . 1 15 4 . Leg 12 | . 14 11 19 11 30 25 7 4 . Hover 3 | . . . 2 11 2 . . 6 . Flight 6 | . . 9 11 11 . . . 7 21 Device 12 | . . 4 11 11 11 8 6 17 20 Storage 8 | . 14 11 11 11 11 9 7 7 7 Processor 3 | . . . . . . 5 15 3 . Hackware 10 | . 5 11 11 11 11 . 5 13 22 Protection 6 | . . . . . . 19 15 3 2 Energy Gun 8 | . . 3 11 11 11 6 7 8 7 Ballistic Gun 5 | . 28 18 . . 10 5 7 2 7 Launcher 2 | . . . 10 11 . . . . . Peak Build Rating 70 | 6 9 17 21 22 22 36 46 70 50 Average Rating 36 | 4 7 13 17 21 17 31 44 54 48 On Entrance 21 | . 6 9 16 21 22 18 36 46 45 Naked Turns . | . . . . . . . . . . Heaviest Build 58 | 13 13 18 21 26 24 58 41 46 40 Greatest Support 40 | 16 16 20 20 12 35 40 40 40 13 Greatest Overweight (x) 11 | 1 1 1 1 2 1 2 1 11 4 Average Overweight (x) 1 | . . . . 1 . . . 1 2 Largest Inventory Capacity 10 | 8 8 8 8 10 10 10 10 10 10 Average Capacity 9 | 6 8 8 8 9 10 10 10 10 10 Most Carried 10 | 2 6 8 8 10 10 10 10 10 10 Average Carried 8 | 1 3 7 8 8 9 9 8 9 10 Final Capacity 10 | 8 8 8 8 10 10 10 10 10 10 Final Carried 10 | 2 6 8 8 10 10 10 9 10 10 Class Distribution -------------------- 37% | Mutant 29% | Scavenger-Mutant 18% | Scavenger-Skirmisher 11% | Skirmisher 3% | Scavenger-Scout Dominant Class ---------------- Mutant | -10/Materials Mutant | -9/Materials Mutant | -9/Mines Mutant | -9/Exiles Skirmisher | -8/Mines Mutant | -8/Materials Scavenger-Skirmisher | -7/Factory Scavenger-Mutant | -7/Garrison Scavenger-Mutant | -7/Factory Resources | -11 -10 -9 -9 -9 -8 -8 -7 -7 -7 ----------- Run | Yrd Mat Mat Min Exi Min Mat Fac Gar Fac Matter Collected 1976 | 114 171 120 186 10 99 408 . 696 172 Remotely . | . . . . . . . . . . Salvage Created 1394 | . 20 203 20 . 26 483 . 358 284 Parts 79 | . 3 11 5 . . 23 . 15 22 Haulers Intercepted 3 | . . 1 . . . 2 . . . Recyclers Shooed . | . . . . . . . . . . Parts Field Recycled . | . . . . . . . . . . Retrieved Matter . | . . . . . . . . . . Parts Self-Destructed . | . . . . . . . . . . Prevented . | . . . . . . . . . . Kills | -11 -10 -9 -9 -9 -8 -8 -7 -7 -7 ------- Run | Yrd Mat Mat Min Exi Min Mat Fac Gar Fac Combat Hostiles Destroyed 28 | . . 4 5 . 1 5 . 9 4 Guns 22 | . . 4 1 . 1 3 . 9 4 Cannons 2 | . . . . . . 2 . . . AOE 4 | . . . 4 . . . . . . Classes Destroyed 12 | . 1 4 . . . 3 . 3 1 Hauler 3 | . . 1 . . . 2 . . . Recycler 2 | . . . . . . 1 . . 1 Operator 4 | . 1 . . . . 2 . . 1 Drone 1 | . . . . . . . . 1 . Watcher 2 | . . . . . . 2 . . . Swarmer 10 | . . 1 5 . . 1 . 3 . Cutter 1 | . . . . . . . . 1 . Grunt 10 | . . 1 . . 1 3 . 4 1 Sentry 3 | . . 2 . . . . . . 1 Specialist 1 | . . . . . . . . . 1 Hunter 1 | . . . . . . 1 . . . Programmer 2 | . . . . . . . . 1 1 Best Kill Streak 4 | . 1 2 3 . 1 2 . 2 4 Combat Bots Only 4 | . . 2 3 . 1 2 . 2 4 Max Kills in Single Turn 3 | . 1 1 3 . 1 1 . 1 1 Gunslinging . | . . . . . . . . . . Exploded 3 | . . . 3 . . . . . . Melee . | . . . . . . . . . . Uniques/NPCs Destroyed . | . . . . . . . . . . Combat | -11 -10 -9 -9 -9 -8 -8 -7 -7 -7 -------- Run | Yrd Mat Mat Min Exi Min Mat Fac Gar Fac Hostile Shots Fired 206 | . 14 20 9 . 21 46 . 80 16 Missed 62 | . 7 9 4 . 5 14 . 16 7 Damage Taken 2653 | . 135 200 49 . 262 539 . 1352 116 Core 365 | . . 54 7 . 50 78 . 154 22 Absorbed by Shields 204 | . . . . . . 108 . 53 43 Regen/Repaired (Parts) 39 | . . . . . . 39 . . . Core Remaining (%) 70 | 100 88 . . . 14 80 . . . Volleys Fired 178 | . 15 19 5 . 8 45 . 68 18 Largest 2 | . 2 2 2 . 2 2 . 2 2 Hottest 145 | . 40 85 98 . 98 114 . 145 88 Shots Fired 316 | . 30 31 8 . 14 82 . 114 37 Gun 285 | . 30 31 3 . 10 60 . 114 37 Cannon 22 | . . . . . . 22 . . . Launcher 9 | . . . 5 . 4 . . . . Special . | . . . . . . . . . . Kinetic 162 | . 30 25 . . 3 44 . 41 19 Thermal 123 | . . 6 3 . 7 26 . 63 18 Explosive 9 | . . . 5 . 4 . . . . Electromagnetic 22 | . . . . . . 12 . 10 . Robot Hit Streak 11 | . 4 5 2 . 2 8 . 11 4 Robot Miss Streak 16 | . 4 7 6 . 9 16 . 3 5 Penetration Max . | . . . . . . . . . . Secondary Targets 2 | . . 1 . . 1 . . . . Max Gunslinging Chain 1 | . . 1 . . 1 . . . . Shots Hit Robots 165 | . 15 20 6 . 10 45 . 51 18 Core Hits 106 | . 5 17 11 . 9 24 . 27 13 Critical Kills . | . . . . . . . . . . Critical Parts Destroyed . | . . . . . . . . . . Critical Strikes 3 | . . . . . . 2 . 1 . Burn 3 | . . . . . . 2 . 1 . Melee Attacks . | . . . . . . . . . . Impact . | . . . . . . . . . . Slashing . | . . . . . . . . . . Piercing . | . . . . . . . . . . Sneak Attacks . | . . . . . . . . . . Combat Hostiles . | . . . . . . . . . . Follow-up Attacks . | . . . . . . . . . . Damage Inflicted 3345 | . 171 238 345 . 390 833 . 989 379 Guns 2384 | . 171 238 11 . 92 504 . 989 379 Cannons 325 | . . . . . . 325 . . . Explosions 616 | . . . 322 . 294 . . . . Melee . | . . . . . . . . . . Ramming 20 | . . . 12 . 4 4 . . . Kinetic 1332 | . 171 159 . . 36 341 . 447 178 Thermal 997 | . . 79 11 . 56 208 . 442 201 Explosive 616 | . . . 322 . 294 . . . . Electromagnetic 380 | . . . . . . 280 . 100 . Impact . | . . . . . . . . . . Slashing . | . . . . . . . . . . Piercing . | . . . . . . . . . . Highest Corruption 8 | . . . . . . 2 . 8 8 Average Corruption 7 | . . . . . . 2 . 7 8 Corruption Purged . | . . . . . . . . . . Corruption Blocked . | . . . . . . . . . . Effects 113 | . . . . . . 1 . 88 24 Message Errors 28 | . . . . . . . . 21 7 Matter Fused 29 | . . . . . . . . 22 7 Heat Flow Errors 13 | . . . . . . 1 . 8 4 Energy Discharges 15 | . . . . . . . . 12 3 Parts Fused 1 | . . . . . . . . 1 . Data Loss (minor) 13 | . . . . . . . . 11 2 Data Loss (major) 8 | . . . . . . . . 8 . Misfires 4 | . . . . . . . . 3 1 Alerts 1 | . . . . . . . . 1 . Weapon Failures 1 | . . . . . . . . 1 . Overload Shots . | . . . . . . . . . . Overflow Damage 19 | . . . 1 . 18 . . . . Projectiles . | . . . . . . . . . . Explosions 19 | . . . 1 . 18 . . . . Melee . | . . . . . . . . . . Knockbacks . | . . . . . . . . . . Impact . | . . . . . . . . . . Kinetic . | . . . . . . . . . . Secondary . | . . . . . . . . . . Self-Inflicted Damage 34 | . . . 6 . 28 . . . . Shots 1 | . . . . . 1 . . . . Rammed 1 | . . . 1 . . . . . . Targets Rammed 5 | . . . 3 . 1 1 . . . Kicked 4 | . . . 2 . 1 1 . . . Crushed . | . . . . . . . . . . Highest Temperature 301 | . 15 70 21 . 187 288 . 245 301 Average Temperature 70 | . 9 24 12 . 92 71 . 70 87 Received Heat Transfer 508 | . 57 63 . . 135 30 . 183 40 Siege Activations . | . . . . . . . . . . Robots Corrupted . | . . . . . . . . . . Combat Hostiles . | . . . . . . . . . . Parts Fried . | . . . . . . . . . . Impact Corruptions . | . . . . . . . . . . Robots Melted . | . . . . . . . . . . Combat Hostiles . | . . . . . . . . . . Parts Melted 1 | . . . . . . 1 . . . Heat Transferred 2003 | . . 90 15 . 70 485 . 956 387 Parts Sabotaged . | . . . . . . . . . . Parts Stolen . | . . . . . . . . . . Parts Stripped . | . . . . . . . . . . Power Chain Reactions . | . . . . . . . . . . Alert | -11 -10 -9 -9 -9 -8 -8 -7 -7 -7 ------- Run | Yrd Mat Mat Min Exi Min Mat Fac Gar Fac Peak Influence 2053 | . 236 485 270 . 152 429 194 2053 1250 Initial 1077 | . . 99 189 . . . 194 . 1077 Average 568 | . 111 242 217 . 112 202 193 992 1066 Maximum Alert Level 5 | . 1 2 1 . . 2 . 5 4 Low Security (%) 30 | 100 72 41 29 . 100 42 100 3 . Level 1 27 | . 27 41 70 . . 53 . 12 . Level 2 6 | . . 16 . . . 4 . 12 . Level 3 18 | . . . . . . . . 35 59 Level 4 13 | . . . . . . . . 26 40 Level 5 3 | . . . . . . . . 10 . High Security . | . . . . . . . . . . Max Security . | . . . . . . . . . . Squads Dispatched 14 | . 2 1 . . . 7 . . 4 Investigation 4 | . 1 . . . . 3 . . . Extermination 1 | . . . . . . . . . 1 Reinforcement 7 | . 1 1 . . . 4 . . 1 Assault . | . . . . . . . . . . Garrison 2 | . . . . . . . . . 2 Intercept . | . . . . . . . . . . Searches Triggered . | . . . . . . . . . . Construction Impeded . | . . . . . . . . . . Haulers Reinforced 1 | . . . . . . . . . 1 Active Scanning Responses . | . . . . . . . . . . Cargo Convoy Interrupts 1 | . . . . . . . . . 1 Stealth | -11 -10 -9 -9 -9 -8 -8 -7 -7 -7 --------- Run | Yrd Mat Mat Min Exi Min Mat Fac Gar Fac Distress Signals . | . . . . . . . . . . Communications Jammed . | . . . . . . . . . . Distress Signals . | . . . . . . . . . . Times Spotted 123 | . 9 11 7 . 4 34 . 34 24 Peak Tracking Total 13 | . 3 4 2 . 3 7 . 6 13 Tactical Retreats 5 | . . . . . . 3 . 1 1 Traps | -11 -10 -9 -9 -9 -8 -8 -7 -7 -7 ------- Run | Yrd Mat Mat Min Exi Min Mat Fac Gar Fac Traps Triggered 3 | . . . . . . 1 . 2 . Indirectly . | . . . . . . . . . . Trap Hack Attempts . | . . . . . . . . . . Triggered . | . . . . . . . . . . Disarmed . | . . . . . . . . . . Reprogrammed . | . . . . . . . . . . Reused . | . . . . . . . . . . Traps Extracted . | . . . . . . . . . . Installed . | . . . . . . . . . . Triggered . | . . . . . . . . . . Machines | -11 -10 -9 -9 -9 -8 -8 -7 -7 -7 ---------- Run | Yrd Mat Mat Min Exi Min Mat Fac Gar Fac Machines Disabled 18 | . . 1 . . . 5 . 10 2 Max in Single Turn 1 | . . . . . . 1 . 1 . Garrison Relay 8 | . . . . . . . . 8 . Machines Repaired . | . . . . . . . . . . Machines Dismantled . | . . . . . . . . . . Machines Sabotaged . | . . . . . . . . . . Overloaded Fab Kills . | . . . . . . . . . . Hacking | -11 -10 -9 -9 -9 -8 -8 -7 -7 -7 --------- Run | Yrd Mat Mat Min Exi Min Mat Fac Gar Fac Machines Accessed 13 | . 1 1 . 2 . 6 1 2 . Terminals 9 | . 1 1 . . . 5 . 2 . Fabricators . | . . . . . . . . . . Repair Stations 1 | . . . . . . 1 . . . Recycling Units . | . . . . . . . . . . Scanalyzers . | . . . . . . . . . . Garrison Access 1 | . . . . . . . 1 . . Total Hacks 28 | . 3 2 . 2 . 17 1 3 . Successful 15 | . 1 2 . 2 . 8 1 1 . Failed 13 | . 2 . . . . 9 . 2 . Catastrophic 2 | . . . . . . 2 . . . Database Lockouts . | . . . . . . . . . . Manual 15 | . 3 2 . 1 . 9 . . . Terminals 23 | . 3 2 . . . 15 . 3 . Fabricators . | . . . . . . . . . . Repair Stations 2 | . . . . . . 2 . . . Recycling Units . | . . . . . . . . . . Scanalyzers . | . . . . . . . . . . Garrison Access 1 | . . . . . . . 1 . . Terminal Hacks 12 | . 1 2 . 2 . 6 . 1 . Record 1 | . . . . 1 . . . . . Robot Analysis 4 | . 1 2 . . . 1 . . . Emergency Access Points 1 | . . . . . . . . 1 . Alert Level 3 | . . . . . . 3 . . . Unreport Threat 2 | . . . . . . 2 . . . Derelict Proto ID Bank 1 | . . . . 1 . . . . . Fabricator Hacks . | . . . . . . . . . . Repair Station Hacks 2 | . . . . . . 2 . . . Scan Component 1 | . . . . . . 1 . . . Repair 1 | . . . . . . 1 . . . Recycling Unit Hacks . | . . . . . . . . . . Scanalyzer . | . . . . . . . . . . Garrison Access Hacks 1 | . . . . . . . 1 . . Unlock Access 1 | . . . . . . . 1 . . Unauthorized Hacks . | . . . . . . . . . . Terminals . | . . . . . . . . . . Fabricators . | . . . . . . . . . . Repair Stations . | . . . . . . . . . . Recycling Units . | . . . . . . . . . . Scanalyzers . | . . . . . . . . . . Garrison Access . | . . . . . . . . . . Data Cores Recovered 1 | . . . . . . . . . 1 Used . | . . . . . . . . . . Hacking Detections 10 | . 1 1 . . . 6 . 2 . Full Trace Events 2 | . . . . . . 2 . . . Feedback Events . | . . . . . . . . . . Feedback Blocked . | . . . . . . . . . . Robot Schematics Acquired . | . . . . . . . . . . Robots Built . | . . . . . . . . . . Authchips . | . . . . . . . . . . Time . | . . . . . . . . . . Total Robot Build Rating . | . . . . . . . . . . Part Schematics Acquired . | . . . . . . . . . . Parts Built . | . . . . . . . . . . Authchips . | . . . . . . . . . . Time . | . . . . . . . . . . Total Part Build Rating . | . . . . . . . . . . Parts Repaired 1 | . . . . . . 1 . . . Time 51 | . . . . . . 51 . . . Parts Recycled . | . . . . . . . . . . Recycled Matter . | . . . . . . . . . . Retrieved Matter . | . . . . . . . . . . Retrieved Components . | . . . . . . . . . . Parts Scanalyzed . | . . . . . . . . . . Part Schematics Acquired . | . . . . . . . . . . Parts Damaged . | . . . . . . . . . . Bothacking | -11 -10 -9 -9 -9 -8 -8 -7 -7 -7 ------------ Run | Yrd Mat Mat Min Exi Min Mat Fac Gar Fac Used RIF Installer . | . . . . . . . . . . Robots Hacked . | . . . . . . . . . . Non-combat . | . . . . . . . . . . Combat . | . . . . . . . . . . Robot Hacks Applied . | . . . . . . . . . . Relay Couplers Released 33 | . . . . . . . . 33 . Machine Destruction 33 | . . . . . . . . 33 . Fabnet Peak Effective % . | . . . . . . . . . . Robots Rewired . | . . . . . . . . . . Allies Hacked . | . . . . . . . . . . Hacks Repelled . | . . . . . . . . . . Allies | -11 -10 -9 -9 -9 -8 -8 -7 -7 -7 -------- Run | Yrd Mat Mat Min Exi Min Mat Fac Gar Fac Total Allies 6 | . 1 . 3 . . . . 2 . Largest Group 4 | . 1 1 4 1 1 1 1 3 1 Highest-Rated Group 227 | . 57 65 105 66 66 80 86 227 102 Highest-Rated Ally 102 | . 57 65 66 66 66 80 86 96 102 Total Orders 3 | . . . . . . . 1 2 . EXPLORE 3 | . . . . . . . 1 2 . Ally Attacks 184 | . 24 10 16 . 8 39 . 63 24 Total Damage 7330 | . 426 462 313 . 260 1868 . 2996 1005 Kills 92 | . 9 6 5 . 4 27 . 28 13 Allies Corrupted . | . . . . . . . . . . Allies Melted . | . . . . . . . . . . Intel | -11 -10 -9 -9 -9 -8 -8 -7 -7 -7 ------- Run | Yrd Mat Mat Min Exi Min Mat Fac Gar Fac Robot Analysis Total 4 | . 1 2 . . . 1 . . . Derelict Logs Recovered . | . . . . . . . . . . Drone Launches 3 | . . . . . . . 1 2 . Drone Recoveries 2 | . . . . . . . 1 1 . Exploration | -11 -10 -9 -9 -9 -8 -8 -7 -7 -7 ------------- Run | Yrd Mat Mat Min Exi Min Mat Fac Gar Fac Turns Passed 8617 | 63 293 317 662 908 425 1967 401 2836 745 Spaces Moved 4156 | 37 131 208 332 453 226 868 170 1369 362 Core 5 | 5 . . . . . . . . . Treads 633 | . . . . . . 73 170 390 . Legs 1659 | 29 110 44 257 . 218 795 . 206 . Wheels 227 | 3 21 164 . . . . . . 39 Hover 897 | . . . 75 453 8 . . 361 . Flight 735 | . . . . . . . . 412 323 Fastest Speed 50 | 50 100 100 120 160 120 120 170 58 125 Average Speed 178 | 144 175 118 181 198 129 186 235 176 181 Slowest Speed 945 | 190 190 190 190 230 190 260 250 945 332 Overloaded Moves . | . . . . . . . . . . Propulsion Burnouts . | . . . . . . . . . . Robots Hopped . | . . . . . . . . . . Cave-ins Triggered . | . . . . . . . . . . Exploration Rate (%) 40 | 4 28 17 73 61 53 62 14 76 13 Regions Visited 9 Branch Regions 3 Pre-discovered Areas 1 | . . . . 1 . . . . . Known Exits Taken 1 | . . . . . . . 1 . . Unknown Exits Taken 7 | 1 1 1 1 1 1 1 . . . Scrap Searched 1 | . . . 1 . . . . . . Spaces Dug . | . . . . . . . . . . Terrain Destroyed 76 | . . . 43 . 29 4 . . . Melee . | . . . . . . . . . . Projectile 4 | . . . . . . 4 . . . AOE 72 | . . . 43 . 29 . . . . Terrain Rammed . | . . . . . . . . . . Walls Destroyed . | . . . . . . . . . . Machines Disabled . | . . . . . . . . . . Actions | -11 -10 -9 -9 -9 -8 -8 -7 -7 -7 --------- Run | Yrd Mat Mat Min Exi Min Mat Fac Gar Fac Total 5048 | 44 165 249 379 463 342 1131 172 1682 421 Wait 520 | . 15 11 32 7 103 172 . 153 27 Move 4147 | 36 130 207 331 452 225 867 169 1368 362 Hop . | . . . . . . . . . . Pick Up 28 | 2 1 1 2 2 . 9 1 7 3 Fast Attach 22 | 6 1 2 . . . 4 . 8 1 Attach 12 | . . . . . 2 3 2 5 . Detach 5 | . . . . . . 1 . 4 . Swap 66 | . 3 8 4 1 3 19 . 22 6 Drop 35 | . . 1 2 1 . 10 . 17 4 Fire 178 | . 15 19 5 . 8 45 . 68 18 Melee . | . . . . . . . . . . Ram 1 | . . . 1 . . . . . . Kick 4 | . . . 2 . 1 1 . . . Crush . | . . . . . . . . . . Escape Stasis 30 | . . . . . . . . 30 . Rewire . | . . . . . . . . . . Trap . | . . . . . . . . . . Miscellaneous . | . . . . . . . . . . Route ------- -11/Scrapyard -10/Materials -9/Materials -9/Mines (discovered 3 exits: *Mat x2 / *Exi) -9/Exiles -8/Mines -8/Materials -7/Factory (discovered 3 exits: [*Fac] / [*Low] / Gar) -7/Garrison (discovered 4 exits: [*Fac x4]) -7/Factory (discovered 1 exit: [*Low]) History --------- Turn | Location | Event 9 | -11/Scrapyard | Discovered new exit (range 14) 64 | -11/Scrapyard | Entered Materials 297 | -10/Materials | Discovered new exit (range 12) 308 | -10/Materials | Build established: Mutant 357 | -10/Materials | Entered another Materials area 357 | -9/Materials | Evolved 2 slots: Propulsion x1, Utility x1 466 | -9/Materials | Discovered new exit (range 16) 674 | -9/Materials | Entered Mines 681 | -9/Mines | Received a Rocket Launcher from a helpful Derelict 685 | -9/Mines | Discovered new exit (range 13) 835 | -9/Mines | Discovered new exit (range 11) 860 | -9/Mines | Assisted by bots powering up and referring to "LRC-V3" 1113 | -9/Mines | Assembled infested the area 1172 | -9/Mines | Core integrity fell below 50% 1197 | -9/Mines | Lost 3 allies 1306 | -9/Mines | Discovered new exit (range 5) 1336 | -9/Mines | Entered Exiles 1376 | -9/Exiles | Met 8R-AWN 1404 | -9/Exiles | Met EX-HEX 1447 | -9/Exiles | Met EX-BIN 1578 | -9/Exiles | Met EX-DEC 1589 | -9/Exiles | Learned location of Zion (-6) 1713 | -9/Exiles | Discovered new exit (range 10) 1901 | -9/Exiles | Aligned with FarCom system 1904 | -9/Exiles | Given EX-Vault access code 1968 | -9/Exiles | Opened EX-Vault 1986 | -9/Exiles | Found Supersonic Drone Bay 2036 | -9/Exiles | Warned to stay clear of 0b10 Research branches 2244 | -9/Exiles | Left Exiles lab with Supersonic Drone Bay 2244 | -9/Exiles | Entered Mines 2249 | -8/Mines | Core integrity fell below 20% 2494 | -8/Mines | Discovered new exit (range 8) 2539 | -8/Mines | Build established: Skirmisher 2669 | -8/Mines | Entered Materials 2669 | -8/Materials | Evolved 2 slots: Utility x2 3374 | -8/Materials | Repaired Cld. Ion Engine 3414 | -8/Materials | Build established: Mutant 4160 | -8/Materials | Discovered new exit (range 18) 4343 | -8/Materials | Build established: Skirmisher 4636 | -8/Materials | Entered Factory 4636 | -7/Factory | Evolved 2 slots: Utility x2 4790 | -7/Factory | Discovered new exit (range 86) 4996 | -7/Factory | Build established: Scavenger-Skirmisher 5022 | -7/Factory | Discovered new exit (range 16) 5035 | -7/Factory | Identified exit to Garrison 5037 | -7/Factory | Entered Garrison 5106 | -7/Garrison | Discovered new exit (range 52) 5107 | -7/Garrison | Discovered new exit (range 62) 5111 | -7/Garrison | Triggered checkpoint 5121 | -7/Garrison | Triggered checkpoint 5136 | -7/Garrison | Heavy support dispatched to Factory 5362 | -7/Garrison | Found Prototype Device 5362 | -7/Garrison | Identified Active Sensor Suite 5491 | -7/Garrison | Garrison Relay disabled 5579 | -7/Garrison | Triggered checkpoint 5601 | -7/Garrison | Triggered checkpoint 5641 | -7/Garrison | Triggered checkpoint 5647 | -7/Garrison | Triggered checkpoint 5837 | -7/Garrison | Garrison Relay disabled 5861 | -7/Garrison | Discovered new exit (range 10) 5863 | -7/Garrison | Found embedded Infiltrators 5935 | -7/Garrison | Heavy support dispatched to Factory 5955 | -7/Garrison | Triggered checkpoint 5993 | -7/Garrison | Discovered new exit (range 12) 5997 | -7/Garrison | Build established: Scavenger-Scout 6036 | -7/Garrison | Garrison Relay disabled 6289 | -7/Garrison | Triggered checkpoint 6298 | -7/Garrison | Build established: Scavenger-Skirmisher 6349 | -7/Garrison | Garrison Relay disabled 6378 | -7/Garrison | Heavy support dispatched to Factory 6433 | -7/Garrison | Triggered checkpoint 6527 | -7/Garrison | Found Broken Active Sensor Suite 6807 | -7/Garrison | Build established: Scavenger-Mutant 7324 | -7/Garrison | H-XX Assembler disabled 7633 | -7/Garrison | Garrison Relay disabled 7636 | -7/Garrison | Garrison Relay disabled 7721 | -7/Garrison | Garrison Relay disabled 7724 | -7/Garrison | Garrison Relay disabled 7873 | -7/Garrison | Entered Factory 8285 | -7/Factory | Discovered new exit (range 4) 8483 | -7/Factory | Garrison activated, responded to threat 8573 | -7/Factory | Core integrity fell below 50% 8598 | -7/Factory | Cargo convoy interrupted 8617 | -7/Factory | Core integrity fell below 20% 8618 | -7/Factory | Core destroyed Last Messages --------------- 08610_ Slug penetrates Player 2. 08611_ U-05 Engineer builds a Wall. 08611_ K-01 Serf collects debris. 08612_ Y-54 Guardian destroyed. Player 2: "I need another Titanium Leg, we can't win without it!" 08613_ K-01 Serf collects debris. 08613_ Slug penetrates Wall. 08613_ M-28 Smith repairs H-55 Commando. 08613_ Player 2 drops Unknown Storage. 08614_ Player 2 removes Matter Compressor. 08614_ Slug penetrates Player 2. 08614_ Player 2 attaches Matter Compressor. 08615_ K-01 Serf collects debris. 08615_ M-28 Smith repairs X-67 Chaingunner. 08617_ Critical hit (Burn: +27). 08617_ M-28 Smith repairs H-55 Commando. 08618_ K-01 Serf collects debris. 08618_ P-60 Hacker destroyed. 08618_ Slug penetrates Player 2. Map ----- +----------------------------------------------------+ | ?????????????????????????????????????????????????? | | ?????????????????????????????????????????????????? | | ?????????????????????????????????????????????????? | | ?????????????????????????????????????????????????? | | ?????????????????????????????????????????????????? | | ?????????????????????????????????????????????????? | | ?????????????????????????????????????????????????? | | ?????????????????????????????????????????????????? | | ?????????????????????????????????????????????????? | | ?????????????????????????????????????????????????? | | ????????????????????????? ?????????????????????? | | ????????????????????????? ???????????????????? | | ????????????????????????# #????????????????? | | ??????????????????????? #????????????????? | | ???????????????????????? % ##+#?????????????? | | ???????????????????????? #?????????????? | | ???????????????????????? % #?????????????? | | ???????????????????????? k ###???????????? | | ######???????????????##?# m ???Y????????? | | [ #????????########;##k #?????????????? | | #????????? #pxm #?????????????? | | #????????"" """" !; hxu ???????????????? | | """" #????????"" """" x[%[h[ #????????????????? | | """" #?????????" "" @/!== #????????????????? | | """" #?????????" """" ;! !% #????????????????? | | """" #?????????" """" ;@ * #????????????????? | | """" #???????""" """" # %[!k #????????????????? | | """" #??? ;==u% #????????????????? | | #?????########;##""####+#######?????????????? | | ! #???????????????## i #????Y????????? | | ] #????????????????# * ! #?????????????? | | #????????????????# A #?????????????? | | ! ! #????????????????# """ """ #?????????????? | | #######################= """ """ #?????????????? | | [ |= *%*!| + """ """ #?????????????? | | ########+########+#####= #?????????????? | | ?????? ^ ???#=|=!= ## """ #?????????????? | | ?????# """ #?# """ ## """ " " #?????????????? | | ?????# "Y" #?# """ ## """ "G" ??????????????? | | ?????# #?# """ ## ? ???????????????? | | ?????# #?# ## ?????????????????? | | ?????# * #?# ! ! ###########?????????????????? | | ??????#######?########???????????????????????????? | | | | | | | | | | | | | | | +----------------------------------------------------+ Best States ------------- Heat Dissipation 48 Energy Generation 16 Energy Capacity 290 Matter Stores 300 Matter Capacity 300 Sight Range 20 Robot Scan Range 14 Terrain Scan Density 10 Armor Coverage 675 Evasion (%) 55 Recoil Reduction 2 Offensive Hacking 30 Item Schematics ----------------- None Robot Schematics ------------------ None Fabricated ------------ Nothing Alien Tech Used ----------------- None Achievements -------------- Generalissimo Challenges ------------ None Player 2 | -11 -10 -9 -9 -9 -8 -8 -7 -7 -7 ---------- Run | Yrd Mat Mat Min Exi Min Mat Fac Gar Fac Slots Evolved 6 | . 2 . . . 2 2 . . . Power 1 | . . . . . . 1 . . . Propulsion 2 | . 1 . . . 1 . . . . Utility 1 | . . . . . 1 . . . . Weapon 2 | . 1 . . . . 1 . . . Parts Attached 75 | . 7 8 3 2 . 22 2 20 11 Parts Lost 23 | . . 1 1 . . 3 . 3 15 Damage Taken 4406 | . 73 132 493 . 89 514 . 1109 1996 Core 833 | . 29 38 181 . 13 31 . 121 420 Player 2/Cogmind (%) 69 | . 100 41 96 . 20 28 . 44 95 Absorbed by Shields 376 | . . . . . . 186 . 190 . Damage Inflicted 6993 | . 426 462 231 . 260 1868 . 2741 1005 Player 2/Cogmind (%) 67 | . 71 66 40 . 40 69 . 73 72 Combat Hostiles Destroyed 75 | . 6 6 5 . 3 21 . 24 10 Player 2/Cogmind (%) 72 | . 100 60 50 . 75 80 . 72 71 Game ------ Seed HellfireTechLeg Manual? 0 Play Time 01:06:02 Cumulative 62.3 hours Start 2024.09.14 @ 17:21:45 End 2024.09.16 @ 01:00:49 Sessions 3 Manual Loads 0 Difficulty Rogue Special Mode AFD2020/Player2 Game No. 63 Rogue 63 Adventurer 0 Explorer 0 Win Type - Total 1 Types 1/0/0/0/0/0/0/0/0 Lore% 21 Gallery% 47 Achievement% 32 Wizard Run 0 Options --------- Layout 2 ASCII 0 Keyboard 1 Movement Numpad Keybinds 0 Fullscreen 2 Font 24/Smallcaps Map View 50x44 Zoom Use 0% Tactical HUD 1 Map Filters NONE Filters LOW_CONTRAST(5,10,15) Steam 1 RUN: 9c7d222d-6d20-4be1-a3a7-3d348fd6dfc0